[Event "December 5 Early 2023"]
[Site "https://www.chess.com"]
[Date "2023.12.05"]
[Round "3"]
[White "Taichman, Ori"]
[Black "Kovalev, Vladislav"]
[Result "0-1"]
[Board "31"]
[TimeControl "180+1"]
[WhiteFideId "2804069"]
[BlackFideId "13504398"]
[WhiteElo "2642"]
[BlackElo "2911"]
[WhiteTeam "ISR"]
[BlackTeam "FID"]
[WhiteClock "0:00:02"]
[BlackClock "0:00:11"]

1. e4 {[%clk 0:02:56]}  e5 {[%clk 0:03:00]} 2. d4 {[%clk 0:02:55]}  exd4 {[%clk 0:03:00]} 3. Qxd4 {[%clk 0:02:56]}  Nc6 {[%clk 0:03:01]} 4. Qe3 {[%clk 0:02:57]}  Nf6 {[%clk 0:03:01]} 5. Nc3 {[%clk 0:02:57]}  Bb4 {[%clk 0:03:02]} 6. Bd2 {[%clk 0:02:58]}  O-O {[%clk 0:03:03]} 7. O-O-O {[%clk 0:02:58]}  Re8 {[%clk 0:03:03]} 8. Qg3 {[%clk 0:02:58]}  Rxe4 {[%clk 0:03:03]} 9. a3 {[%clk 0:02:58]}  Ba5 {[%clk 0:02:53]} 10. Be2 {[%clk 0:02:52]}  d5 {[%clk 0:02:46]} 11. Bh6 {[%clk 0:02:46]}  g6 {[%clk 0:01:58]} 12. Nxe4 {[%clk 0:02:37]}  Nxe4 {[%clk 0:01:59]} 13. Qf4 {[%clk 0:02:35]}  Be6 {[%clk 0:01:52]} 14. Bd3 {[%clk 0:02:16]}  g5 {[%clk 0:01:26]} 15. Qf3 {[%clk 0:01:58]}  Ne5 {[%clk 0:01:23]} 16. Qe2 {[%clk 0:01:53]}  Qf6 {[%clk 0:00:40]} 17. Nf3 {[%clk 0:01:12]}  Nxd3+ {[%clk 0:00:20]} 18. cxd3 {[%clk 0:01:10]}  Qxh6 {[%clk 0:00:17]} 19. dxe4 {[%clk 0:01:08]}  g4+ {[%clk 0:00:18]} 20. Nd2 {[%clk 0:01:05]}  dxe4 {[%clk 0:00:19]} 21. Qxe4 {[%clk 0:00:53]}  Rd8 {[%clk 0:00:17]} 22. Qe3 {[%clk 0:00:53]}  Qxe3 {[%clk 0:00:11]} 23. fxe3 {[%clk 0:00:54]}  Bb6 {[%clk 0:00:12]} 24. Rhe1 {[%clk 0:00:39]}  Rd3 {[%clk 0:00:11]} 25. Nf1 {[%clk 0:00:33]}  Rb3 {[%clk 0:00:12]} 26. Kc2 {[%clk 0:00:27]}  Rb5 {[%clk 0:00:11]} 27. e4 {[%clk 0:00:24]}  Bb3+ {[%clk 0:00:11]} 28. Kc3 {[%clk 0:00:20]}  Bxd1 {[%clk 0:00:12]} 29. Rxd1 {[%clk 0:00:21]}  Rc5+ {[%clk 0:00:12]} 30. Kb3 {[%clk 0:00:19]}  Re5 {[%clk 0:00:09]} 31. Ng3 {[%clk 0:00:17]}  h5 {[%clk 0:00:08]} 32. Rd5 {[%clk 0:00:11]}  Rxd5 {[%clk 0:00:05]} 33. exd5 {[%clk 0:00:12]}  h4 {[%clk 0:00:05]} 34. Nf5 {[%clk 0:00:12]}  h3 {[%clk 0:00:06]} 35. gxh3 {[%clk 0:00:12]}  gxh3 {[%clk 0:00:07]} 36. Nh4 {[%clk 0:00:04]}  Kg7 {[%clk 0:00:06]} 37. Nf3 {[%clk 0:00:03]}  Kg6 {[%clk 0:00:06]} 38. Kc4 {[%clk 0:00:03]}  Kf5 {[%clk 0:00:06]} 39. Kd3 {[%clk 0:00:04]}  Kf4 {[%clk 0:00:06]} 40. Ke2 {[%clk 0:00:02]}  f6 {[%clk 0:00:07]} 41. b3 {[%clk 0:00:02]}  Ke4 {[%clk 0:00:08]} 42. a4 {[%clk 0:00:01]}  Kxd5 {[%clk 0:00:08]} 43. b4 {[%clk 0:00:01]}  a6 {[%clk 0:00:08]} 44. b5 {[%clk 0:00:02]}  axb5 {[%clk 0:00:07]} 45. axb5 {[%clk 0:00:02]}  Kc4 {[%clk 0:00:08]} 46. Nd2+ {[%clk 0:00:03]}  Kxb5 {[%clk 0:00:08]} 47. Ne4 {[%clk 0:00:04]}  Bg1 {[%clk 0:00:07]} 48. Nxf6 {[%clk 0:00:04]}  Bxh2 {[%clk 0:00:08]} 49. Kf3 {[%clk 0:00:05]}  Bd6 {[%clk 0:00:08]} 50. Ne4 {[%clk 0:00:03]}  h2 {[%clk 0:00:09]} 51. Kg2 {[%clk 0:00:04]}  Kc4 {[%clk 0:00:10]} 52. Nd2+ {[%clk 0:00:04]}  Kd3 {[%clk 0:00:10]} 53. Nf3 {[%clk 0:00:04]}  b5 {[%clk 0:00:10]} 54. Kh1 {[%clk 0:00:04]}  b4 {[%clk 0:00:11]} 55. Ne1+ {[%clk 0:00:05]}  Kc3 {[%clk 0:00:11]} 56. Nf3 {[%clk 0:00:02]}  b3 {[%clk 0:00:11]} 0-1

[Event "December 5 Early 2023"]
[Site "https://www.chess.com"]
[Date "2023.12.05"]
[Round "3"]
[White "Bodnar, Nikolay"]
[Black "Rakhmanov, Aleksandr"]
[Result "1-0"]
[Board "32"]
[TimeControl "180+1"]
[WhiteFideId "14106469"]
[BlackFideId "4173708"]
[WhiteElo "2620"]
[BlackElo "2910"]
[WhiteTeam "UKR"]
[BlackTeam "FID"]
[WhiteClock "0:00:54"]
[BlackClock "0:00:00"]

1. e4 {[%clk 0:03:00]}  c5 {[%clk 0:02:59]} 2. Nf3 {[%clk 0:03:00]}  Nf6 {[%clk 0:02:59]} 3. e5 {[%clk 0:02:59]}  Nd5 {[%clk 0:02:56]} 4. Nc3 {[%clk 0:03:00]}  Nxc3 {[%clk 0:02:48]} 5. dxc3 {[%clk 0:03:00]}  Nc6 {[%clk 0:02:48]} 6. Bf4 {[%clk 0:02:58]}  Qc7 {[%clk 0:02:48]} 7. Qd2 {[%clk 0:02:57]}  e6 {[%clk 0:02:48]} 8. h4 {[%clk 0:02:53]}  h6 {[%clk 0:02:49]} 9. h5 {[%clk 0:02:53]}  b6 {[%clk 0:02:48]} 10. Bd3 {[%clk 0:02:49]}  Bb7 {[%clk 0:02:47]} 11. O-O-O {[%clk 0:02:49]}  Rb8 {[%clk 0:02:42]} 12. Qe3 {[%clk 0:02:44]}  Bc8 {[%clk 0:02:40]} 13. Rd2 {[%clk 0:02:41]}  b5 {[%clk 0:02:39]} 14. Rhd1 {[%clk 0:02:37]}  Qa5 {[%clk 0:02:37]} 15. Kb1 {[%clk 0:02:36]}  Rb6 {[%clk 0:02:34]} 16. Be4 {[%clk 0:02:30]}  c4 {[%clk 0:02:08]} 17. Nd4 {[%clk 0:02:20]}  Ra6 {[%clk 0:01:51]} 18. a3 {[%clk 0:02:14]}  Nd8 {[%clk 0:00:21]} 19. Nf5 {[%clk 0:01:10]}  exf5 {[%clk 0:00:12]} 20. Bxf5 {[%clk 0:01:08]}  Ne6 {[%clk 0:00:10]} 21. Bxe6 {[%clk 0:01:03]}  fxe6 {[%clk 0:00:05]} 22. Qe4 {[%clk 0:01:03]}  Bxa3 {[%clk 0:00:04]} 23. Qg6+ {[%clk 0:01:00]}  Kd8 {[%clk 0:00:02]} 24. Qxg7 {[%clk 0:00:58]}  Bf8 {[%clk 0:00:00]} 25. Rxd7+ {[%clk 0:00:54]} 1-0

[Event "December 5 Early 2023"]
[Site "https://www.chess.com"]
[Date "2023.12.05"]
[Round "3"]
[White "Shuvalov, Evgenij"]
[Black "Finek, Vaclav"]
[Result "0-1"]
[Board "43"]
[TimeControl "180+1"]
[WhiteFideId "4187237"]
[BlackFideId "23718293"]
[WhiteElo "2552"]
[BlackElo "2838"]
[WhiteTeam "FID"]
[BlackTeam "CZE"]
[WhiteClock "0:00:00"]
[BlackClock "0:00:09"]

1. d4 {[%clk 0:02:54]}  d5 {[%clk 0:02:59]} 2. c4 {[%clk 0:02:54]}  c6 {[%clk 0:02:57]} 3. Nc3 {[%clk 0:02:53]}  Nf6 {[%clk 0:02:56]} 4. e3 {[%clk 0:02:53]}  e6 {[%clk 0:02:54]} 5. Nf3 {[%clk 0:02:52]}  Nbd7 {[%clk 0:02:54]} 6. Be2 {[%clk 0:02:52]}  Bd6 {[%clk 0:02:52]} 7. O-O {[%clk 0:02:52]}  O-O {[%clk 0:02:53]} 8. b3 {[%clk 0:02:52]}  b6 {[%clk 0:02:52]} 9. Bb2 {[%clk 0:02:52]}  Bb7 {[%clk 0:02:52]} 10. Bd3 {[%clk 0:02:52]}  c5 {[%clk 0:02:39]} 11. cxd5 {[%clk 0:02:44]}  exd5 {[%clk 0:02:38]} 12. Rc1 {[%clk 0:02:39]}  a6 {[%clk 0:02:32]} 13. dxc5 {[%clk 0:02:38]}  bxc5 {[%clk 0:02:27]} 14. Qe2 {[%clk 0:02:37]}  Qe7 {[%clk 0:02:26]} 15. Rfd1 {[%clk 0:02:37]}  Rfe8 {[%clk 0:02:23]} 16. Na4 {[%clk 0:02:33]}  a5 {[%clk 0:02:05]} 17. Qf1 {[%clk 0:02:29]}  Bc6 {[%clk 0:02:03]} 18. Nc3 {[%clk 0:02:23]}  a4 {[%clk 0:01:59]} 19. Nxa4 {[%clk 0:02:15]}  c4 {[%clk 0:01:52]} 20. Bc2 {[%clk 0:02:09]}  Bxa4 {[%clk 0:01:52]} 21. bxa4 {[%clk 0:02:08]}  Ba3 {[%clk 0:01:49]} 22. Rb1 {[%clk 0:02:02]}  Reb8 {[%clk 0:01:45]} 23. Bd4 {[%clk 0:01:54]}  Bc5 {[%clk 0:01:30]} 24. Rxb8+ {[%clk 0:01:51]}  Rxb8 {[%clk 0:01:29]} 25. Rb1 {[%clk 0:01:51]}  Qd6 {[%clk 0:01:03]} 26. Rb5 {[%clk 0:01:45]}  Ra8 {[%clk 0:00:51]} 27. Qb1 {[%clk 0:01:40]}  Bxd4 {[%clk 0:00:48]} 28. Nxd4 {[%clk 0:01:39]}  g6 {[%clk 0:00:49]} 29. h3 {[%clk 0:01:37]}  Kg7 {[%clk 0:00:45]} 30. Qb2 {[%clk 0:01:32]}  Qe5 {[%clk 0:00:33]} 31. Rb7 {[%clk 0:01:12]}  h5 {[%clk 0:00:28]} 32. Qb5 {[%clk 0:00:56]}  Qd6 {[%clk 0:00:27]} 33. Bf5 {[%clk 0:00:30]}  Nc5 {[%clk 0:00:16]} 34. Rb6 {[%clk 0:00:30]}  Qe7 {[%clk 0:00:14]} 35. Nc6 {[%clk 0:00:19]}  Qf8 {[%clk 0:00:12]} 36. Bc2 {[%clk 0:00:16]}  Nfd7 {[%clk 0:00:12]} 37. Qb2+ {[%clk 0:00:12]}  Kg8 {[%clk 0:00:11]} 38. Rb5 {[%clk 0:00:11]}  Qd6 {[%clk 0:00:11]} 39. Nd4 {[%clk 0:00:09]}  Nxa4 {[%clk 0:00:11]} 40. Bxa4 {[%clk 0:00:09]}  Rxa4 {[%clk 0:00:12]} 41. Rb7 {[%clk 0:00:05]}  Ra8 {[%clk 0:00:12]} 42. Qb5 {[%clk 0:00:04]}  Ne5 {[%clk 0:00:11]} 43. a4 {[%clk 0:00:03]}  c3 {[%clk 0:00:11]} 44. Qb3 {[%clk 0:00:00]}  Qc5 {[%clk 0:00:09]} 0-1

[Event "December 5 Early 2023"]
[Site "https://www.chess.com"]
[Date "2023.12.05"]
[Round "3"]
[White "Klekowski, Maciej"]
[Black "Kotyk, Michael"]
[Result "1-0"]
[Board "46"]
[TimeControl "180+1"]
[WhiteFideId "1132717"]
[BlackFideId "16214501"]
[WhiteElo "2833"]
[BlackElo "2530"]
[WhiteTeam "POL"]
[BlackTeam "GER"]
[WhiteClock "0:02:00"]
[BlackClock "0:01:32"]

1. c4 {[%clk 0:03:00]}  Nf6 {[%clk 0:02:59]} 2. Nc3 {[%clk 0:03:01]}  e5 {[%clk 0:02:59]} 3. g3 {[%clk 0:03:01]}  Bb4 {[%clk 0:02:59]} 4. Bg2 {[%clk 0:03:01]}  O-O {[%clk 0:02:58]} 5. e4 {[%clk 0:03:01]}  Bxc3 {[%clk 0:02:57]} 6. bxc3 {[%clk 0:03:01]}  c6 {[%clk 0:02:55]} 7. Ne2 {[%clk 0:02:47]}  d5 {[%clk 0:02:54]} 8. exd5 {[%clk 0:02:44]}  cxd5 {[%clk 0:02:55]} 9. cxd5 {[%clk 0:02:45]}  Nxd5 {[%clk 0:02:55]} 10. O-O {[%clk 0:02:46]}  Nc6 {[%clk 0:02:55]} 11. Qb3 {[%clk 0:02:36]}  Nb6 {[%clk 0:02:54]} 12. Re1 {[%clk 0:02:35]}  Be6 {[%clk 0:02:55]} 13. Qc2 {[%clk 0:02:35]}  Bd5 {[%clk 0:02:50]} 14. Ba3 {[%clk 0:02:33]}  Re8 {[%clk 0:02:45]} 15. d3 {[%clk 0:02:15]}  Bxg2 {[%clk 0:02:41]} 16. Kxg2 {[%clk 0:02:15]}  Qd5+ {[%clk 0:02:41]} 17. f3 {[%clk 0:02:16]}  Rad8 {[%clk 0:02:40]} 18. Rad1 {[%clk 0:02:17]}  h5 {[%clk 0:02:14]} 19. Ng1 {[%clk 0:02:12]}  h4 {[%clk 0:02:03]} 20. Nh3 {[%clk 0:02:11]}  hxg3 {[%clk 0:02:02]} 21. hxg3 {[%clk 0:02:12]}  Re6 {[%clk 0:01:58]} 22. Ng5 {[%clk 0:02:11]}  Rg6 {[%clk 0:01:58]} 23. Ne4 {[%clk 0:02:05]}  f5 {[%clk 0:01:55]} 24. Nf2 {[%clk 0:02:03]}  f4 {[%clk 0:01:42]} 25. g4 {[%clk 0:02:02]}  Ne7 {[%clk 0:01:32]} 26. Bxe7 {[%clk 0:02:00]} 1-0

[Event "December 5 Early 2023"]
[Site "https://www.chess.com"]
[Date "2023.12.05"]
[Round "3"]
[White "Latorre, Vincent"]
[Black "Nguyen, Quoc Hy"]
[Result "0-1"]
[Board "49"]
[TimeControl "180+1"]
[WhiteFideId "2636891"]
[BlackFideId "12410853"]
[WhiteElo "2441"]
[BlackElo "2812"]
[WhiteTeam "CAN"]
[BlackTeam "VIE"]
[WhiteClock "0:00:01"]
[BlackClock "0:00:49"]

1. e4 {[%clk 0:03:00]}  c5 {[%clk 0:02:59]} 2. Nf3 {[%clk 0:03:00]}  Nc6 {[%clk 0:02:59]} 3. d4 {[%clk 0:03:00]}  cxd4 {[%clk 0:02:59]} 4. Nxd4 {[%clk 0:03:01]}  e5 {[%clk 0:02:59]} 5. Nb5 {[%clk 0:02:59]}  d6 {[%clk 0:03:00]} 6. N1c3 {[%clk 0:02:47]}  a6 {[%clk 0:02:59]} 7. Na3 {[%clk 0:02:46]}  Be6 {[%clk 0:02:58]} 8. Nd5 {[%clk 0:02:44]}  Nf6 {[%clk 0:02:51]} 9. Nxf6+ {[%clk 0:02:30]}  gxf6 {[%clk 0:02:50]} 10. Nc4 {[%clk 0:02:24]}  f5 {[%clk 0:02:32]} 11. exf5 {[%clk 0:02:03]}  Bxf5 {[%clk 0:02:33]} 12. Ne3 {[%clk 0:02:00]}  Be6 {[%clk 0:02:29]} 13. c4 {[%clk 0:02:00]}  Bg7 {[%clk 0:02:25]} 14. Bd3 {[%clk 0:01:58]}  Nd4 {[%clk 0:02:24]} 15. O-O {[%clk 0:01:52]}  O-O {[%clk 0:02:22]} 16. Be4 {[%clk 0:01:14]}  Rb8 {[%clk 0:02:13]} 17. Bd5 {[%clk 0:01:13]}  b5 {[%clk 0:02:11]} 18. b3 {[%clk 0:01:07]}  Kh8 {[%clk 0:02:01]} 19. Ba3 {[%clk 0:00:57]}  Rc8 {[%clk 0:01:40]} 20. Rc1 {[%clk 0:00:53]}  Rc7 {[%clk 0:01:21]} 21. Bb4 {[%clk 0:00:39]}  Rd7 {[%clk 0:01:20]} 22. Qd2 {[%clk 0:00:36]}  Qg5 {[%clk 0:01:17]} 23. Kh1 {[%clk 0:00:27]}  Qg6 {[%clk 0:01:10]} 24. f3 {[%clk 0:00:25]}  Bh6 {[%clk 0:01:08]} 25. Qf2 {[%clk 0:00:24]}  Bxd5 {[%clk 0:01:03]} 26. Nxd5 {[%clk 0:00:21]}  Bxc1 {[%clk 0:01:02]} 27. Rxc1 {[%clk 0:00:20]}  bxc4 {[%clk 0:01:00]} 28. bxc4 {[%clk 0:00:20]}  Rb8 {[%clk 0:00:59]} 29. Bc3 {[%clk 0:00:20]}  Rb1 {[%clk 0:00:59]} 30. Qe3 {[%clk 0:00:16]}  Rxc1+ {[%clk 0:00:51]} 31. Qxc1 {[%clk 0:00:17]}  Rb7 {[%clk 0:00:51]} 32. Bb2 {[%clk 0:00:06]}  Qc2 {[%clk 0:00:50]} 33. Qxc2 {[%clk 0:00:01]}  Nxc2 {[%clk 0:00:50]} 34. Bc3 {[%clk 0:00:01]}  Rb1+ {[%clk 0:00:49]} 0-1

[Event "December 5 Early 2023"]
[Site "https://www.chess.com"]
[Date "2023.12.05"]
[Round "3"]
[White "Bolat, Inayat"]
[Black "Skvortsov, Andrei"]
[Result "1-0"]
[Board "51"]
[TimeControl "180+1"]
[WhiteFideId "13733125"]
[BlackFideId "24108600"]
[WhiteElo "2403"]
[BlackElo "2805"]
[WhiteTeam "KAZ"]
[BlackTeam "MNE"]
[WhiteClock "0:00:08"]
[BlackClock "0:00:13"]

1. e4 {[%clk 0:03:00]}  d5 {[%clk 0:03:00]} 2. exd5 {[%clk 0:03:00]}  Qxd5 {[%clk 0:03:00]} 3. Nc3 {[%clk 0:03:01]}  Qe5+ {[%clk 0:03:01]} 4. Be2 {[%clk 0:03:01]}  Bg4 {[%clk 0:03:02]} 5. d4 {[%clk 0:03:01]}  Bxe2 {[%clk 0:03:02]} 6. Ngxe2 {[%clk 0:03:02]}  Qa5 {[%clk 0:03:03]} 7. O-O {[%clk 0:03:01]}  Nf6 {[%clk 0:03:03]} 8. Re1 {[%clk 0:03:00]}  Nc6 {[%clk 0:03:01]} 9. b4 {[%clk 0:02:50]}  Nxb4 {[%clk 0:02:53]} 10. a3 {[%clk 0:02:44]}  O-O-O {[%clk 0:02:46]} 11. Rb1 {[%clk 0:02:31]}  Nbd5 {[%clk 0:02:45]} 12. Bd2 {[%clk 0:02:25]}  Nxc3 {[%clk 0:02:40]} 13. Bxc3 {[%clk 0:02:23]}  Qa6 {[%clk 0:02:38]} 14. Nf4 {[%clk 0:02:19]}  e6 {[%clk 0:02:37]} 15. Qf3 {[%clk 0:02:17]}  Bd6 {[%clk 0:02:25]} 16. Bb4 {[%clk 0:02:08]}  Bxb4 {[%clk 0:02:10]} 17. Rxb4 {[%clk 0:02:07]}  Rd7 {[%clk 0:02:05]} 18. Nd3 {[%clk 0:02:05]}  Rd5 {[%clk 0:01:34]} 19. Nc5 {[%clk 0:02:01]}  Qc6 {[%clk 0:01:35]} 20. Nxb7 {[%clk 0:01:49]}  Qxc2 {[%clk 0:01:30]} 21. Nc5 {[%clk 0:01:45]}  Re8 {[%clk 0:01:13]} 22. Reb1 {[%clk 0:01:32]}  Kd8 {[%clk 0:01:13]} 23. Qf4 {[%clk 0:01:08]}  e5 {[%clk 0:00:40]} 24. Qg3 {[%clk 0:00:57]}  exd4 {[%clk 0:00:26]} 25. Rb8+ {[%clk 0:00:48]}  Ke7 {[%clk 0:00:26]} 26. Qxc7+ {[%clk 0:00:42]}  Kf8 {[%clk 0:00:19]} 27. Ne6+ {[%clk 0:00:40]}  fxe6 {[%clk 0:00:18]} 28. Qxc2 {[%clk 0:00:39]}  d3 {[%clk 0:00:16]} 29. Rxe8+ {[%clk 0:00:38]}  Kxe8 {[%clk 0:00:17]} 30. Qc8+ {[%clk 0:00:38]}  Kf7 {[%clk 0:00:17]} 31. Qc3 {[%clk 0:00:15]}  e5 {[%clk 0:00:17]} 32. f3 {[%clk 0:00:14]}  e4 {[%clk 0:00:15]} 33. fxe4 {[%clk 0:00:14]}  Nxe4 {[%clk 0:00:16]} 34. Rb7+ {[%clk 0:00:14]}  Ke6 {[%clk 0:00:16]} 35. Qxg7 {[%clk 0:00:12]}  Rd6 {[%clk 0:00:15]} 36. Re7+ {[%clk 0:00:08]}  Kd5 {[%clk 0:00:15]} 37. Qe5+ {[%clk 0:00:08]}  Kc4 {[%clk 0:00:14]} 38. Qxe4+ {[%clk 0:00:08]}  Rd4 {[%clk 0:00:13]} 39. Rc7+ {[%clk 0:00:08]} 1-0

[Event "December 5 Early 2023"]
[Site "https://www.chess.com"]
[Date "2023.12.05"]
[Round "3"]
[White "Feuerstack, Aljoscha"]
[Black "Sarana, Alexey"]
[Result "1-0"]
[Board "55"]
[TimeControl "180+1"]
[WhiteFideId "4681932"]
[BlackFideId "24133795"]
[WhiteElo "2646"]
[BlackElo "2998"]
[WhiteTeam "GER"]
[BlackTeam "SRB"]
[WhiteClock "0:00:14"]
[BlackClock "0:00:00"]

1. e4 {[%clk 0:03:00]}  c5 {[%clk 0:02:59]} 2. Nf3 {[%clk 0:03:00]}  d6 {[%clk 0:03:00]} 3. d3 {[%clk 0:03:00]}  Nf6 {[%clk 0:02:59]} 4. g3 {[%clk 0:03:00]}  Nc6 {[%clk 0:02:52]} 5. Bg2 {[%clk 0:02:59]}  g6 {[%clk 0:02:53]} 6. O-O {[%clk 0:02:59]}  Bg7 {[%clk 0:02:53]} 7. Re1 {[%clk 0:02:57]}  O-O {[%clk 0:02:53]} 8. c3 {[%clk 0:02:56]}  e5 {[%clk 0:02:52]} 9. a3 {[%clk 0:02:52]}  b6 {[%clk 0:02:49]} 10. h3 {[%clk 0:02:42]}  h6 {[%clk 0:02:49]} 11. Be3 {[%clk 0:02:43]}  d5 {[%clk 0:02:48]} 12. Qc2 {[%clk 0:02:25]}  Bb7 {[%clk 0:02:39]} 13. b4 {[%clk 0:02:13]}  d4 {[%clk 0:02:37]} 14. cxd4 {[%clk 0:02:02]}  cxd4 {[%clk 0:02:34]} 15. Bc1 {[%clk 0:02:01]}  Nd7 {[%clk 0:02:30]} 16. Nbd2 {[%clk 0:01:58]}  Rc8 {[%clk 0:02:29]} 17. Qa2 {[%clk 0:01:56]}  b5 {[%clk 0:02:22]} 18. Nb3 {[%clk 0:01:52]}  Rc7 {[%clk 0:02:17]} 19. Bd2 {[%clk 0:01:47]}  Bc8 {[%clk 0:02:16]} 20. Rac1 {[%clk 0:01:45]}  Nb6 {[%clk 0:02:16]} 21. Nc5 {[%clk 0:01:39]}  Qd6 {[%clk 0:02:11]} 22. Rc2 {[%clk 0:01:37]}  Re8 {[%clk 0:02:08]} 23. Rec1 {[%clk 0:01:37]}  Ree7 {[%clk 0:02:08]} 24. Nh4 {[%clk 0:01:17]}  Kh7 {[%clk 0:02:08]} 25. f4 {[%clk 0:01:16]}  exf4 {[%clk 0:02:03]} 26. gxf4 {[%clk 0:01:15]}  Qd8 {[%clk 0:01:55]} 27. Nf3 {[%clk 0:01:08]}  Nb8 {[%clk 0:01:52]} 28. Be1 {[%clk 0:01:07]}  N8d7 {[%clk 0:01:33]} 29. Bh4 {[%clk 0:00:53]}  f6 {[%clk 0:01:19]} 30. Nb3 {[%clk 0:00:50]}  Rxc2 {[%clk 0:01:18]} 31. Qxc2 {[%clk 0:00:50]}  g5 {[%clk 0:01:16]} 32. Bg3 {[%clk 0:00:47]}  Nf8 {[%clk 0:01:03]} 33. fxg5 {[%clk 0:00:44]}  fxg5 {[%clk 0:00:28]} 34. Bc7 {[%clk 0:00:43]}  Rxc7 {[%clk 0:00:28]} 35. Qxc7 {[%clk 0:00:44]}  Qe8 {[%clk 0:00:23]} 36. Nfxd4 {[%clk 0:00:35]}  Bd7 {[%clk 0:00:19]} 37. Qxa7 {[%clk 0:00:34]}  Na4 {[%clk 0:00:19]} 38. Nf5 {[%clk 0:00:31]}  Bxf5 {[%clk 0:00:15]} 39. exf5 {[%clk 0:00:32]}  Nd7 {[%clk 0:00:10]} 40. Bc6 {[%clk 0:00:28]}  Qe5 {[%clk 0:00:10]} 41. Qxd7 {[%clk 0:00:23]}  Qe3+ {[%clk 0:00:08]} 42. Kg2 {[%clk 0:00:20]}  g4 {[%clk 0:00:04]} 43. hxg4 {[%clk 0:00:17]}  Qe2+ {[%clk 0:00:03]} 44. Kh1 {[%clk 0:00:17]}  Qxg4 {[%clk 0:00:03]} 45. Bg2 {[%clk 0:00:17]}  Qh4+ {[%clk 0:00:01]} 46. Kg1 {[%clk 0:00:17]}  Nc3 {[%clk 0:00:02]} 47. Rxc3 {[%clk 0:00:16]}  Qe1+ {[%clk 0:00:02]} 48. Bf1 {[%clk 0:00:16]}  Qxc3 {[%clk 0:00:00]} 49. Nc5 {[%clk 0:00:14]} 1-0

[Event "December 5 Early 2023"]
[Site "https://www.chess.com"]
[Date "2023.12.05"]
[Round "3"]
[White "Marosi, Levente"]
[Black "Martinez Alcantara, Jose Eduardo"]
[Result "0-1"]
[Board "56"]
[TimeControl "180+1"]
[WhiteFideId "747181"]
[BlackFideId "3805662"]
[WhiteElo "2626"]
[BlackElo "2983"]
[WhiteTeam "HUN"]
[BlackTeam "PER"]
[WhiteClock "0:00:12"]
[BlackClock "0:00:44"]

1. e4 {[%clk 0:02:59]}  c5 {[%clk 0:02:58]} 2. Nf3 {[%clk 0:03:00]}  d6 {[%clk 0:02:58]} 3. d4 {[%clk 0:03:00]}  cxd4 {[%clk 0:02:59]} 4. Nxd4 {[%clk 0:03:01]}  a6 {[%clk 0:02:59]} 5. Nc3 {[%clk 0:02:58]}  e6 {[%clk 0:02:59]} 6. Be3 {[%clk 0:02:58]}  b5 {[%clk 0:03:00]} 7. f3 {[%clk 0:02:56]}  Nf6 {[%clk 0:03:00]} 8. Qd2 {[%clk 0:02:57]}  h5 {[%clk 0:03:00]} 9. O-O-O {[%clk 0:02:54]}  Nbd7 {[%clk 0:02:59]} 10. h3 {[%clk 0:02:45]}  Bb7 {[%clk 0:02:58]} 11. Be2 {[%clk 0:02:45]}  h4 {[%clk 0:02:58]} 12. f4 {[%clk 0:02:46]}  b4 {[%clk 0:02:57]} 13. Nb1 {[%clk 0:02:38]}  Bxe4 {[%clk 0:02:48]} 14. Qxb4 {[%clk 0:02:38]}  Nd5 {[%clk 0:02:18]} 15. Qd2 {[%clk 0:02:38]}  N7f6 {[%clk 0:02:18]} 16. Bf2 {[%clk 0:02:03]}  Be7 {[%clk 0:02:14]} 17. Bf3 {[%clk 0:01:54]}  Rc8 {[%clk 0:02:11]} 18. Rhe1 {[%clk 0:01:39]}  Bxf3 {[%clk 0:02:04]} 19. Nxf3 {[%clk 0:01:40]}  Qc7 {[%clk 0:01:55]} 20. a3 {[%clk 0:01:10]}  Qc4 {[%clk 0:01:47]} 21. Nd4 {[%clk 0:00:59]}  Qa4 {[%clk 0:01:20]} 22. b3 {[%clk 0:00:56]}  Qd7 {[%clk 0:01:19]} 23. Kb2 {[%clk 0:00:56]}  Rb8 {[%clk 0:01:15]} 24. c4 {[%clk 0:00:55]}  Nb6 {[%clk 0:01:16]} 25. Ka2 {[%clk 0:00:55]}  d5 {[%clk 0:01:14]} 26. Qa5 {[%clk 0:00:43]}  O-O {[%clk 0:01:10]} 27. c5 {[%clk 0:00:26]}  Na8 {[%clk 0:01:11]} 28. c6 {[%clk 0:00:26]}  Qd6 {[%clk 0:01:10]} 29. Bxh4 {[%clk 0:00:25]}  Nc7 {[%clk 0:01:06]} 30. f5 {[%clk 0:00:23]}  e5 {[%clk 0:01:01]} 31. Nf3 {[%clk 0:00:23]}  Rb5 {[%clk 0:00:58]} 32. Qc3 {[%clk 0:00:22]}  d4 {[%clk 0:00:58]} 33. Nxd4 {[%clk 0:00:21]}  exd4 {[%clk 0:00:56]} 34. Rxd4 {[%clk 0:00:22]}  Nfd5 {[%clk 0:00:54]} 35. Qd2 {[%clk 0:00:19]}  Bxh4 {[%clk 0:00:53]} 36. Rxh4 {[%clk 0:00:19]}  Qxc6 {[%clk 0:00:46]} 37. Rc4 {[%clk 0:00:20]}  Qf6 {[%clk 0:00:44]} 38. g4 {[%clk 0:00:20]}  Rfb8 {[%clk 0:00:44]} 39. b4 {[%clk 0:00:18]}  a5 {[%clk 0:00:44]} 40. Rec1 {[%clk 0:00:15]}  axb4 {[%clk 0:00:44]} 41. Rxc7 {[%clk 0:00:12]}  b3# {[%clk 0:00:44]} 0-1